[Event "MČR v rapid šachu družstev 2019"]
[Site "Teplice, Czech Republic"]
[Date "2019.09.15"]
[Round "1.6"]
[White "Rolinek, Dominik"]
[Black "Studnicka, Tomas"]
[Result "1/2-1/2"]
[TimeControl "15 min. + 5s"]
[WhiteElo "1999"]
[BlackElo "2379"]

1. d4 {[%clk 00:15:09]} {[%emt 01:10:10]} Nf6 {[%clk 00:15:09]} {[%emt
00:00:01]} 2. Bf4 {[%clk 00:15:12]} g6 {[%clk 00:15:02]} {[%emt 00:00:13]} 3.
Nc3 {[%clk 00:15:15]} {[%emt 00:00:02]} d5 {[%clk 00:15:05]} {[%emt 00:00:02]}
4. Nf3 {[%clk 00:15:12]} {[%emt 00:00:08]} Bg7 {[%clk 00:15:07]} {[%emt
00:00:03]} 5. e3 {[%clk 00:15:15]} {[%emt 00:00:01]} O-O {[%clk 00:15:07]}
{[%emt 00:00:06]} 6. Be2 {[%clk 00:15:19]} {[%emt 00:00:02]} c5 {[%clk
00:14:57]} {[%emt 00:00:14]} 7. Ne5 {[%clk 00:15:22]} {[%emt 00:00:01]} Nc6
{[%clk 00:14:41]} {[%emt 00:00:21]} 8. O-O {[%clk 00:15:21]} {[%emt 00:00:06]}
cxd4 {[%clk 00:14:26]} {[%emt 00:00:20]} 9. exd4 {[%clk 00:15:22]} {[%emt
00:00:05]} Qb6 {[%clk 00:14:27]} {[%emt 00:00:04]} 10. Nxc6 {[%clk 00:15:22]}
{[%emt 00:00:05]} Qxc6 {[%clk 00:14:12]} {[%emt 00:00:20]} 11. Qd2 {[%clk
00:14:42]} {[%emt 00:00:45]} Bf5 {[%clk 00:14:11]} {[%emt 00:00:06]} 12. Bf3
{[%clk 00:14:25]} {[%emt 00:00:22]} Rfd8 {[%clk 00:13:34]} {[%emt 00:00:42]} 13.
Rfe1 {[%clk 00:14:13]} {[%emt 00:00:17]} Ne4 {[%clk 00:12:05]} {[%emt
00:01:35]} 14. Qe3 {[%clk 00:11:01]} {[%emt 00:03:17]} Nxc3 {[%clk 00:11:17]}
{[%emt 00:00:53]} 15. Qxc3 {[%clk 00:11:04]} {[%emt 00:00:02]} Qxc3 {[%clk
00:10:55]} {[%emt 00:00:27]} 16. bxc3 {[%clk 00:11:08]} {[%emt 00:00:01]} e6
{[%clk 00:10:56]} {[%emt 00:00:04]} 17. Rab1 {[%clk 00:11:08]} {[%emt
00:00:04]} b6 {[%clk 00:10:47]} {[%emt 00:00:15]} 18. Re2 {[%clk 00:11:10]}
{[%emt 00:00:02]} Rac8 {[%clk 00:10:49]} {[%emt 00:00:03]} 19. Rb3 {[%clk
00:11:07]} {[%emt 00:00:07]} Rc6 {[%clk 00:10:46]} {[%emt 00:00:09]} 20. g4
{[%clk 00:11:11]} {[%emt 00:00:02]} Be4 {[%clk 00:10:34]} {[%emt 00:00:17]} 21.
Bxe4 {[%clk 00:11:15]} {[%emt 00:00:01]} dxe4 {[%clk 00:10:38]} 22. Rxe4 {[%clk
00:11:19]} {[%emt 00:00:01]} Rdc8 {[%clk 00:10:41]} {[%emt 00:00:02]} 23. Re3
{[%clk 00:11:10]} {[%emt 00:00:14]} Bf8 {[%clk 00:10:42]} {[%emt 00:00:05]} 24.
Kf1 {[%clk 00:10:24]} {[%emt 00:00:50]} Rc4 {[%clk 00:10:46]} {[%emt 00:00:02]}
25. Ke2 {[%clk 00:10:09]} {[%emt 00:00:19]} Ra4 {[%clk 00:10:46]} {[%emt
00:00:05]} 26. Rb2 {[%clk 00:10:06]} {[%emt 00:00:07]} Ba3 {[%clk 00:10:49]}
{[%emt 00:00:04]} 27. Rb1 {[%clk 00:09:58]} {[%emt 00:00:12]} Bf8 {[%clk
00:08:18]} {[%emt 00:02:37]} 28. Rb2 {[%clk 00:09:17]} {[%emt 00:00:44]} Ra3
{[%clk 00:08:10]} {[%emt 00:00:15]} 29. Kd2 {[%clk 00:05:53]} {[%emt 00:03:30]}
Rc4 {[%clk 00:08:08]} {[%emt 00:00:07]} 30. h3 {[%clk 00:04:10]} {[%emt
00:01:47]} Rca4 {[%clk 00:08:08]} {[%emt 00:00:04]} 31. Kd3 {[%clk 00:04:14]}
{[%emt 00:00:02]} Rxa2 {[%clk 00:06:52]} {[%emt 00:01:22]} 32. Rxa2 {[%clk
00:04:18]} {[%emt 00:00:01]} Rxa2 {[%clk 00:06:56]} 33. d5 {[%clk 00:04:22]}
{[%emt 00:00:02]} exd5 {[%clk 00:06:23]} {[%emt 00:00:38]} 34. Re8 {[%clk
00:04:23]} {[%emt 00:00:04]} Kg7 {[%clk 00:06:27]} {[%emt 00:00:01]} 35. Be5+
{[%clk 00:04:24]} {[%emt 00:00:03]} f6 {[%clk 00:06:31]} 36. Bxf6+ {[%clk
00:04:27]} {[%emt 00:00:03]} Kf7 {[%clk 00:06:35]} {[%emt 00:00:01]} 37. Rd8
{[%clk 00:03:54]} {[%emt 00:00:37]} Kxf6 {[%clk 00:05:41]} {[%emt 00:01:00]} 38.
Rxf8+ {[%clk 00:03:57]} {[%emt 00:00:01]} Kg5 {[%clk 00:05:46]} 39. Rh8 {[%clk
00:03:41]} {[%emt 00:00:21]} h6 {[%clk 00:05:41]} {[%emt 00:00:10]} 40. Rd8
{[%clk 00:03:22]} {[%emt 00:00:24]} Ra1 {[%clk 00:04:30]} {[%emt 00:01:16]} 41.
Rxd5+ {[%clk 00:03:02]} {[%emt 00:00:24]} Kh4 {[%clk 00:04:34]} {[%emt
00:00:01]} 42. Ke2 {[%clk 00:03:06]} {[%emt 00:00:01]} Rc1 {[%clk 00:04:09]}
{[%emt 00:00:30]} 43. Kd2 {[%clk 00:02:40]} {[%emt 00:00:31]} Rf1 {[%clk
00:03:44]} {[%emt 00:00:31]} 44. Ke2 {[%clk 00:02:44]} {[%emt 00:00:01]} Rh1
{[%clk 00:03:48]} {[%emt 00:00:01]} 45. Rd6 {[%clk 00:02:43]} {[%emt 00:00:06]}
Rxh3 {[%clk 00:03:51]} {[%emt 00:00:02]} 46. Rxg6 {[%clk 00:02:45]} {[%emt
00:00:03]} Rxc3 {[%clk 00:03:54]} {[%emt 00:00:01]} 47. Kd2 {[%clk 00:02:31]}
{[%emt 00:00:19]} Rc5 {[%clk 00:03:58]} {[%emt 00:00:01]} 48. f4 {[%clk
00:01:52]} {[%emt 00:00:45]} h5 {[%clk 00:03:27]} {[%emt 00:00:36]} 49. gxh5
{[%clk 00:01:52]} {[%emt 00:00:05]} Kxh5 {[%clk 00:03:31]} {[%emt 00:00:02]} 50.
Rg7 {[%clk 00:01:53]} {[%emt 00:00:03]} a5 {[%clk 00:03:31]} {[%emt 00:00:05]}
51. Kd3 {[%clk 00:01:52]} {[%emt 00:00:06]} a4 {[%clk 00:03:02]} {[%emt
00:00:34]} 52. c4 {[%clk 00:01:45]} {[%emt 00:00:12]} Ra5 {[%clk 00:02:45]}
{[%emt 00:00:23]} 53. Kc2 {[%clk 00:01:31]} {[%emt 00:00:19]} a3 {[%clk
00:02:47]} {[%emt 00:00:03]} 54. Kb1 {[%clk 00:01:33]} {[%emt 00:00:02]} Ra4
{[%clk 00:02:52]} 55. Ka2 {[%clk 00:01:37]} {[%emt 00:00:02]} Rxc4 {[%clk
00:02:31]} {[%emt 00:00:26]} 56. Kxa3 {[%clk 00:01:40]} {[%emt 00:00:02]} Rxf4
{[%clk 00:02:35]} {[%emt 00:00:02]} 57. Kb3 {[%clk 00:01:40]} {[%emt 00:00:04]}
Rg4 {[%emt 00:00:08]} 1/2-1/2

[Event "MČR v rapid šachu družstev 2019"]
[Site "Teplice, Czech Republic"]
[Date "2019.09.15"]
[Round "1.7"]
[White "Sodoma, Jan"]
[Black "Richtr, Zdenek"]
[Result "1-0"]
[TimeControl "15 min. + 5s"]
[WhiteElo "2358"]
[BlackElo "2114"]

1. Nf3 {[%clk 00:15:07]} {[%emt 00:00:03]} Nf6 {[%clk 00:15:07]} {[%emt
00:00:03]} 2. c4 {[%clk 00:15:10]} {[%emt 00:00:02]} g6 {[%clk 00:15:11]}
{[%emt 00:00:02]} 3. b3 {[%clk 00:15:14]} {[%emt 00:00:01]} Bg7 {[%clk
00:15:13]} {[%emt 00:00:02]} 4. Bb2 {[%clk 00:15:18]} O-O {[%clk 00:15:15]}
{[%emt 00:00:04]} 5. g3 {[%clk 00:15:21]} {[%emt 00:00:01]} d5 {[%clk
00:15:16]} {[%emt 00:00:05]} 6. cxd5 {[%clk 00:15:20]} {[%emt 00:00:06]} Nxd5
{[%clk 00:15:20]} {[%emt 00:00:01]} 7. Bxg7 {[%clk 00:15:23]} {[%emt 00:00:02]}
Kxg7 {[%clk 00:15:24]} 8. Bg2 {[%clk 00:15:18]} {[%emt 00:00:11]} c5 {[%clk
00:15:26]} {[%emt 00:00:03]} 9. Qc2 {[%clk 00:14:33]} {[%emt 00:00:51]} Qd6
{[%clk 00:15:04]} {[%emt 00:00:27]} 10. Na3 {[%clk 00:14:12]} {[%emt 00:00:25]}
Na6 {[%clk 00:14:18]} {[%emt 00:00:52]} 11. Nc4 {[%clk 00:12:46]} {[%emt
00:01:31]} Qf6 {[%clk 00:14:04]} {[%emt 00:00:18]} 12. O-O {[%clk 00:12:48]}
{[%emt 00:00:03]} Bf5 {[%clk 00:13:14]} {[%emt 00:00:56]} 13. e4 {[%clk
00:12:15]} {[%emt 00:00:37]} Ndb4 {[%clk 00:13:17]} {[%emt 00:00:03]} 14. Qb1
{[%clk 00:12:15]} {[%emt 00:00:05]} Be6 {[%clk 00:12:55]} {[%emt 00:00:27]} 15.
a3 {[%clk 00:10:05]} {[%emt 00:02:15]} Nc6 {[%clk 00:12:38]} {[%emt 00:00:22]}
16. e5 {[%clk 00:09:40]} {[%emt 00:00:30]} Qf5 {[%clk 00:12:36]} {[%emt
00:00:07]} 17. Qb2 {[%clk 00:09:44]} {[%emt 00:00:01]} Rfd8 {[%clk 00:12:07]}
{[%emt 00:00:34]} 18. Rfe1 {[%clk 00:09:19]} {[%emt 00:00:30]} Rac8 {[%clk
00:10:57]} {[%emt 00:01:15]} 19. Rac1 {[%clk 00:09:22]} {[%emt 00:00:02]} b5
{[%clk 00:07:40]} {[%emt 00:03:22]} 20. Ne3 {[%clk 00:09:11]} {[%emt 00:00:16]}
Qd3 {[%clk 00:07:43]} {[%emt 00:00:02]} 21. Bf1 {[%clk 00:08:53]} {[%emt
00:00:23]} Qxb3 {[%clk 00:07:22]} {[%emt 00:00:27]} 22. Qxb3 {[%clk 00:08:56]}
{[%emt 00:00:01]} Bxb3 {[%clk 00:07:25]} {[%emt 00:00:02]} 23. Bxb5 {[%clk
00:08:59]} {[%emt 00:00:02]} Nd4 {[%clk 00:05:32]} {[%emt 00:01:59]} 24. Nxd4
{[%clk 00:08:43]} {[%emt 00:00:21]} cxd4 {[%clk 00:05:36]} 25. Bxa6 {[%clk
00:05:28]} {[%emt 00:03:21]} dxe3 {[%clk 00:05:09]} {[%emt 00:00:32]} 26. dxe3
{[%clk 00:05:08]} {[%emt 00:00:25]} Rxc1 {[%clk 00:04:27]} {[%emt 00:00:47]} 27.
Rxc1 {[%clk 00:05:11]} {[%emt 00:00:01]} Rd5 {[%clk 00:04:04]} {[%emt
00:00:28]} 28. Rc3 {[%clk 00:04:53]} {[%emt 00:00:24]} Bd1 {[%clk 00:03:53]}
{[%emt 00:00:16]} 29. f4 {[%clk 00:04:24]} {[%emt 00:00:34]} Rd2 {[%clk
00:03:31]} {[%emt 00:00:27]} 30. Rc7 {[%clk 00:03:57]} {[%emt 00:00:32]} Ra2
{[%clk 00:03:06]} {[%emt 00:00:30]} 31. Rxe7 {[%clk 00:03:45]} {[%emt
00:00:17]} Kf8 {[%clk 00:02:48]} {[%emt 00:00:23]} 32. Rxf7+ {[%clk 00:03:47]}
{[%emt 00:00:03]} Kxf7 {[%clk 00:02:46]} {[%emt 00:00:08]} 33. Bc4+ {[%clk
00:03:50]} {[%emt 00:00:02]} Ke7 {[%clk 00:02:50]} 34. Bxa2 {[%clk 00:03:53]}
{[%emt 00:00:02]} Bc2 {[%clk 00:02:26]} {[%emt 00:00:28]} 35. Kf2 {[%clk
00:03:53]} {[%emt 00:00:05]} Be4 {[%clk 00:02:19]} {[%emt 00:00:12]} 36. Ke2
{[%clk 00:03:52]} {[%emt 00:00:05]} Kd7 {[%clk 00:02:05]} {[%emt 00:00:19]} 37.
Kd2 {[%clk 00:03:55]} {[%emt 00:00:01]} Kc6 {[%clk 00:02:04]} {[%emt 00:00:07]}
38. Kc3 {[%clk 00:03:57]} {[%emt 00:00:03]} Kc5 {[%clk 00:02:07]} {[%emt
00:00:02]} 39. Bg8 {[%clk 00:03:53]} {[%emt 00:00:08]} h6 {[%clk 00:02:06]}
{[%emt 00:00:06]} 40. Bf7 {[%clk 00:03:53]} {[%emt 00:00:05]} g5 {[%clk
00:02:05]} {[%emt 00:00:06]} 41. e6 {[%clk 00:03:49]} {[%emt 00:00:09]} Kd6
{[%clk 00:01:57]} {[%emt 00:00:13]} 42. Kd4 {[%clk 00:03:52]} {[%emt 00:00:02]}
Bd5 {[%clk 00:01:56]} {[%emt 00:00:06]} 43. f5 {[%clk 00:03:51]} {[%emt
00:00:05]} Ba2 {[%clk 00:01:55]} {[%emt 00:00:06]} 44. e4 {[%clk 00:03:51]}
{[%emt 00:00:05]} Bb3 {[%clk 00:01:42]} {[%emt 00:00:18]} 45. e5+ {[%clk
00:03:52]} {[%emt 00:00:04]} Ke7 {[%clk 00:01:46]} 46. Bg8 {[%clk 00:03:36]}
{[%emt 00:00:22]} h5 {[%clk 00:01:14]} {[%emt 00:00:38]} 47. f6+ {[%clk
00:03:39]} {[%emt 00:00:02]} Ke8 {[%clk 00:01:18]} {[%emt 00:00:01]} 48. Kc5
{[%clk 00:03:30]} {[%emt 00:00:13]} h4 {[%clk 00:01:16]} {[%emt 00:00:07]} 49.
Kd6 {[%clk 00:03:26]} {[%emt 00:00:09]} 1-0

[Event "MČR v rapid šachu družstev 2019"]
[Site "Teplice, Czech Republic"]
[Date "2019.09.15"]
[Round "1.8"]
[White "Hosnedl, Matyas"]
[Black "Cech, Pavel"]
[Result "0-1"]
[TimeControl "15 min. + 5s"]
[WhiteElo "1858"]
[BlackElo "2394"]

1. e4 {[%clk 00:15:07]} {[%emt 00:00:01]} e6 {[%clk 00:14:51]} {[%emt
00:00:19]} 2. d4 {[%clk 00:14:54]} {[%emt 00:00:19]} d5 {[%clk 00:14:54]}
{[%emt 00:00:02]} 3. exd5 {[%clk 00:14:43]} {[%emt 00:00:16]} exd5 {[%clk
00:14:56]} {[%emt 00:00:03]} 4. Bd3 {[%clk 00:14:42]} {[%emt 00:00:06]} Nf6
{[%clk 00:14:06]} {[%emt 00:00:55]} 5. Bg5 {[%clk 00:14:16]} {[%emt 00:00:31]}
c5 {[%clk 00:11:32]} {[%emt 00:02:38]} 6. c3 {[%clk 00:12:41]} {[%emt
00:01:40]} h6 {[%clk 00:11:01]} {[%emt 00:00:38]} 7. Bh4 {[%clk 00:10:06]}
{[%emt 00:02:39]} cxd4 {[%clk 00:09:24]} {[%emt 00:01:43]} 8. cxd4 {[%clk
00:07:23]} {[%emt 00:02:48]} Nc6 {[%clk 00:09:25]} {[%emt 00:00:03]} 9. Ne2
{[%clk 00:06:51]} {[%emt 00:00:38]} Bd6 {[%clk 00:06:39]} {[%emt 00:02:51]} 10.
O-O {[%clk 00:06:10]} {[%emt 00:00:45]} Bxh2+ {[%clk 00:06:30]} {[%emt
00:00:14]} 11. Kh1 {[%clk 00:05:33]} {[%emt 00:00:42]} Bd6 {[%clk 00:06:15]}
{[%emt 00:00:21]} 12. Nd2 {[%clk 00:05:00]} {[%emt 00:00:38]} O-O {[%clk
00:05:39]} {[%emt 00:00:41]} 13. Nf3 {[%clk 00:04:57]} {[%emt 00:00:09]} Bg4
{[%clk 00:05:41]} {[%emt 00:00:03]} 14. Rc1 {[%clk 00:03:37]} {[%emt 00:01:26]}
Bxf3 {[%clk 00:04:50]} {[%emt 00:00:56]} 15. gxf3 {[%clk 00:03:39]} {[%emt
00:00:03]} Be7 {[%clk 00:04:46]} {[%emt 00:00:09]} 16. Bg3 {[%clk 00:03:37]}
{[%emt 00:00:07]} Nh5 {[%clk 00:04:31]} {[%emt 00:00:20]} 17. Kg2 {[%clk
00:03:12]} {[%emt 00:00:30]} Bg5 {[%clk 00:04:22]} {[%emt 00:00:14]} 18. Ra1
{[%clk 00:02:47]} {[%emt 00:00:30]} Bf6 {[%clk 00:04:02]} {[%emt 00:00:25]} 19.
Bb1 {[%clk 00:02:38]} {[%emt 00:00:13]} Nxg3 {[%clk 00:03:30]} {[%emt
00:00:37]} 20. fxg3 {[%clk 00:02:25]} {[%emt 00:00:17]} Qb6 {[%clk 00:03:33]}
{[%emt 00:00:02]} 21. Qd3 {[%clk 00:02:15]} {[%emt 00:00:16]} g6 {[%clk
00:03:27]} {[%emt 00:00:12]} 22. Nf4 {[%clk 00:01:35]} {[%emt 00:00:44]} Qxb2+
{[%clk 00:03:26]} {[%emt 00:00:05]} 23. Bc2 {[%clk 00:01:23]} {[%emt 00:00:17]}
Qxd4 {[%clk 00:03:28]} {[%emt 00:00:03]} 24. Nxd5 {[%clk 00:00:57]} {[%emt
00:00:32]} Bg7 {[%clk 00:03:31]} {[%emt 00:00:03]} 25. Ne7+ {[%clk 00:00:45]}
{[%emt 00:00:17]} Nxe7 {[%clk 00:03:33]} {[%emt 00:00:02]} 0-1

[Event "MČR v rapid šachu družstev 2019"]
[Site "Teplice, Czech Republic"]
[Date "2019.09.15"]
[Round "1.9"]
[White "Sprenar, Petr"]
[Black "Bernasek, Jan"]
[Result "0-1"]
[TimeControl "15 min. + 5s"]
[WhiteElo "2089"]
[BlackElo "2496"]

1. d4 {[%clk 00:15:08]} {[%emt 00:00:02]} Nf6 {[%clk 00:15:03]} {[%emt
00:00:07]} 2. Nf3 {[%clk 00:15:08]} {[%emt 00:00:06]} e6 {[%clk 00:15:06]}
{[%emt 00:00:02]} 3. g3 {[%clk 00:15:09]} {[%emt 00:00:04]} b5 {[%clk
00:15:09]} {[%emt 00:00:02]} 4. Bg2 {[%clk 00:15:10]} {[%emt 00:00:04]} Bb7
{[%clk 00:14:36]} {[%emt 00:00:38]} 5. O-O {[%clk 00:15:12]} {[%emt 00:00:03]}
c5 {[%clk 00:14:29]} {[%emt 00:00:12]} 6. a4 {[%clk 00:14:46]} {[%emt
00:00:31]} b4 {[%clk 00:14:31]} {[%emt 00:00:03]} 7. c4 {[%clk 00:14:11]}
{[%emt 00:00:41]} Na6 {[%clk 00:13:56]} {[%emt 00:00:40]} 8. d5 {[%clk
00:13:48]} {[%emt 00:00:28]} exd5 {[%clk 00:13:55]} {[%emt 00:00:05]} 9. Nh4
{[%clk 00:11:42]} {[%emt 00:02:11]} Nc7 {[%clk 00:13:58]} {[%emt 00:00:02]} 10.
Nf5 {[%clk 00:11:24]} {[%emt 00:00:23]} g6 {[%clk 00:13:25]} {[%emt 00:00:37]}
11. Ne3 {[%clk 00:11:28]} {[%emt 00:00:01]} Bg7 {[%clk 00:13:27]} {[%emt
00:00:03]} 12. cxd5 {[%clk 00:11:19]} {[%emt 00:00:15]} d6 {[%clk 00:13:30]}
{[%emt 00:00:01]} 13. Nd2 {[%clk 00:10:51]} {[%emt 00:00:33]} O-O {[%clk
00:12:36]} {[%emt 00:00:59]} 14. Ndc4 {[%clk 00:10:33]} {[%emt 00:00:23]} a5
{[%clk 00:12:28]} {[%emt 00:00:14]} 15. Rb1 {[%clk 00:09:36]} {[%emt 00:01:03]}
Re8 {[%clk 00:12:28]} {[%emt 00:00:03]} 16. Qc2 {[%clk 00:08:41]} {[%emt
00:01:01]} Ra6 {[%clk 00:11:50]} {[%emt 00:00:42]} 17. Rd1 {[%clk 00:08:24]}
{[%emt 00:00:22]} Qe7 {[%clk 00:10:39]} {[%emt 00:01:17]} 18. h4 {[%clk
00:04:56]} {[%emt 00:03:34]} Ne4 {[%clk 00:10:00]} {[%emt 00:00:43]} 19. h5
{[%clk 00:04:32]} {[%emt 00:00:28]} Bd4 {[%clk 00:09:58]} {[%emt 00:00:08]} 20.
hxg6 {[%clk 00:03:28]} {[%emt 00:01:10]} hxg6 {[%clk 00:10:01]} {[%emt
00:00:02]} 21. Ng4 {[%clk 00:01:51]} {[%emt 00:01:42]} Nxd5 {[%clk 00:07:28]}
{[%emt 00:02:37]} 22. Nce3 {[%clk 00:00:55]} {[%emt 00:01:02]} Nb6 {[%clk
00:05:55]} {[%emt 00:01:38]} 23. Bf3 {[%clk 00:00:30]} {[%emt 00:00:30]} d5
{[%clk 00:04:17]} {[%emt 00:01:43]} 24. Kg2 {[%clk 00:00:23]} {[%emt 00:00:13]}
Nd7 {[%clk 00:03:34]} {[%emt 00:00:47]} 25. Nh6+ {[%clk 00:00:10]} {[%emt
00:00:18]} Kf8 {[%clk 00:03:37]} {[%emt 00:00:02]} 26. Rh1 {[%clk 00:00:10]}
{[%emt 00:00:06]} Bg7 {[%clk 00:02:48]} {[%emt 00:00:53]} 27. Nhg4 {[%clk
00:00:12]} {[%emt 00:00:04]} Ndf6 {[%clk 00:02:24]} {[%emt 00:00:29]} 28. b3
{[%clk 00:00:11]} {[%emt 00:00:06]} Nc3 {[%clk 00:02:04]} {[%emt 00:00:24]} 29.
Ra1 {[%clk 00:00:07]} {[%emt 00:00:09]} d4 {[%clk 00:01:43]} {[%emt 00:00:25]}
30. Nxf6 {[%clk 00:00:11]} {[%emt 00:00:01]} Rxf6 {[%clk 00:01:42]} {[%emt
00:00:05]} 31. Ng4 {[%clk 00:00:14]} {[%emt 00:00:03]} Rxf3 {[%clk 00:01:04]}
{[%emt 00:00:43]} 32. exf3 {[%clk 00:00:17]} {[%emt 00:00:02]} Bxf3+ {[%clk
00:00:58]} {[%emt 00:00:11]} 33. Kxf3 {[%clk 00:00:21]} {[%emt 00:00:01]} Qb7+
{[%clk 00:01:02]} {[%emt 00:00:01]} 34. Kf4 {[%clk 00:00:20]} {[%emt 00:00:06]}
Re4+ {[%clk 00:00:48]} {[%emt 00:00:18]} 35. Kf3 {[%clk 00:00:18]} {[%emt
00:00:08]} Re2+ {[%clk 00:00:48]} {[%emt 00:00:05]} 0-1

[Event "MČR v rapid šachu družstev 2019"]
[Site "Teplice, Czech Republic"]
[Date "2019.09.15"]
[Round "1.10"]
[White "Cernousek, Lukas"]
[Black "Lorenc, Tomas"]
[Result "1/2-1/2"]
[TimeControl "15 min. + 5s"]
[WhiteElo "2478"]
[BlackElo "2118"]

1. Nf3 {[%clk 00:15:08]} {[%emt 00:00:01]} Nf6 {[%clk 00:15:09]} {[%emt
00:00:02]} 2. e3 {[%clk 00:15:12]} {[%emt 00:00:01]} g6 {[%clk 00:15:12]}
{[%emt 00:00:02]} 3. b4 {[%clk 00:15:04]} {[%emt 00:00:13]} a5 {[%clk
00:15:10]} {[%emt 00:00:07]} 4. b5 {[%clk 00:15:07]} {[%emt 00:00:02]} Bg7
{[%clk 00:14:59]} {[%emt 00:00:16]} 5. c4 {[%clk 00:15:02]} {[%emt 00:00:10]}
d5 {[%clk 00:13:47]} {[%emt 00:01:18]} 6. d4 {[%clk 00:14:47]} {[%emt
00:00:20]} c5 {[%clk 00:12:58]} {[%emt 00:00:53]} 7. bxc6 {[%clk 00:14:15]}
{[%emt 00:00:37]} bxc6 {[%clk 00:12:34]} {[%emt 00:00:29]} 8. Ba3 {[%clk
00:14:05]} {[%emt 00:00:14]} O-O {[%clk 00:12:26]} {[%emt 00:00:13]} 9. Bd3
{[%clk 00:12:20]} {[%emt 00:01:50]} Na6 {[%clk 00:12:24]} {[%emt 00:00:07]} 10.
O-O {[%clk 00:07:40]} {[%emt 00:04:46]} Nb4 {[%clk 00:12:21]} {[%emt 00:00:08]}
11. Bxb4 {[%clk 00:05:59]} {[%emt 00:01:45]} axb4 {[%clk 00:12:24]} {[%emt
00:00:02]} 12. c5 {[%clk 00:06:03]} {[%emt 00:00:01]} Ne4 {[%clk 00:12:03]}
{[%emt 00:00:26]} 13. Nbd2 {[%clk 00:04:57]} {[%emt 00:01:11]} Bg4 {[%clk
00:10:28]} {[%emt 00:01:40]} 14. Nxe4 {[%clk 00:04:34]} {[%emt 00:00:28]} dxe4
{[%clk 00:10:22]} {[%emt 00:00:11]} 15. Bxe4 {[%clk 00:04:38]} {[%emt
00:00:02]} Qc7 {[%clk 00:10:15]} {[%emt 00:00:12]} 16. Qd2 {[%clk 00:03:20]}
{[%emt 00:01:23]} Rfb8 {[%clk 00:10:04]} {[%emt 00:00:15]} 17. Rfb1 {[%clk
00:03:20]} {[%emt 00:00:05]} f5 {[%clk 00:08:40]} {[%emt 00:01:29]} 18. Bd3
{[%clk 00:01:54]} {[%emt 00:01:32]} Bxf3 {[%clk 00:08:36]} {[%emt 00:00:09]} 19.
gxf3 {[%clk 00:01:58]} {[%emt 00:00:01]} e5 {[%clk 00:08:39]} {[%emt 00:00:01]}
20. Rxb4 {[%clk 00:01:50]} {[%emt 00:00:13]} exd4 {[%clk 00:08:31]} {[%emt
00:00:13]} 21. Rab1 {[%clk 00:01:19]} {[%emt 00:00:35]} dxe3 {[%clk 00:05:35]}
{[%emt 00:03:02]} 22. fxe3 {[%clk 00:01:23]} Rxb4 {[%clk 00:04:51]} {[%emt
00:00:49]} 23. Rxb4 {[%clk 00:01:22]} {[%emt 00:00:06]} Qe5 {[%clk 00:04:38]}
{[%emt 00:00:17]} 24. Rc4 {[%clk 00:00:16]} {[%emt 00:01:12]} f4 {[%clk
00:02:58]} {[%emt 00:01:45]} 25. exf4 {[%clk 00:00:11]} {[%emt 00:00:11]} Qa1+
{[%clk 00:02:58]} {[%emt 00:00:04]} 26. Rc1 {[%clk 00:00:12]} {[%emt 00:00:04]}
Qd4+ {[%emt 00:01:07]} 27. Kg2 Rd8 {[%clk 00:01:20]} {[%emt 00:00:41]} 28. Bc4+
{[%clk 00:00:19]} {[%emt 00:00:03]} Kf8 {[%clk 00:01:24]} {[%emt 00:00:01]} 29.
Qxd4 {[%clk 00:00:14]} {[%emt 00:00:10]} Rxd4 {[%clk 00:01:27]} {[%emt
00:00:01]} 30. f5 {[%clk 00:00:11]} {[%emt 00:00:08]} Rd2+ {[%clk 00:01:13]}
{[%emt 00:00:19]} 31. Kg3 {[%clk 00:00:15]} {[%emt 00:00:02]} g5 {[%clk
00:01:09]} {[%emt 00:00:09]} 32. f4 {[%clk 00:00:12]} {[%emt 00:00:08]} gxf4+
{[%clk 00:00:59]} {[%emt 00:00:15]} 33. Kxf4 {[%clk 00:00:15]} {[%emt
00:00:02]} Rxh2 {[%clk 00:00:36]} {[%emt 00:00:28]} 34. Kg3 {[%clk 00:00:14]}
{[%emt 00:00:05]} Be5+ {[%clk 00:00:34]} {[%emt 00:00:07]} 35. Kg4 {[%clk
00:00:14]} {[%emt 00:00:05]} h5+ {[%clk 00:00:32]} {[%emt 00:00:07]} 36. Kg5
{[%clk 00:00:17]} {[%emt 00:00:02]} Bd4 {[%clk 00:00:32]} {[%emt 00:00:05]} 37.
Rb1 {[%clk 00:00:08]} {[%emt 00:00:14]} h4 {[%clk 00:00:17]} {[%emt 00:00:21]}
38. Rb8+ {[%clk 00:00:08]} {[%emt 00:00:04]} Ke7 {[%clk 00:00:17]} {[%emt
00:00:05]} 39. Rb7+ {[%clk 00:00:12]} {[%emt 00:00:01]} Kf8 {[%clk 00:00:17]}
{[%emt 00:00:05]} 40. Rb8+ {[%clk 00:00:16]} {[%emt 00:00:01]} Ke7 {[%clk
00:00:22]} 41. Rb7+ {[%clk 00:00:20]} Kf8 {[%clk 00:00:26]} 42. f6 {[%clk
00:00:15]} {[%emt 00:00:10]} Rg2+ {[%clk 00:00:23]} {[%emt 00:00:08]} 43. Kh6
{[%clk 00:00:19]} {[%emt 00:00:02]} Bxf6 {[%clk 00:00:25]} {[%emt 00:00:02]} 44.
Rf7+ {[%clk 00:00:22]} {[%emt 00:00:01]} Ke8 {[%clk 00:00:30]} {[%emt
00:00:01]} 45. Rxf6 {[%clk 00:00:26]} {[%emt 00:00:02]} h3 {[%clk 00:00:30]}
{[%emt 00:00:04]} 46. Rf4 {[%clk 00:00:06]} {[%emt 00:00:24]} h2 {[%clk
00:00:31]} {[%emt 00:00:04]} 47. Rh4 {[%clk 00:00:09]} {[%emt 00:00:02]} Rg4
{[%clk 00:00:29]} {[%emt 00:00:07]} 48. Rxh2 {[%clk 00:00:10]} {[%emt
00:00:04]} Rxc4 {[%clk 00:00:33]} {[%emt 00:00:01]} 49. Kg6 {[%clk 00:00:13]}
{[%emt 00:00:01]} Rxc5 {[%clk 00:00:36]} {[%emt 00:00:02]} 50. Kf6 {[%clk
00:00:17]} {[%emt 00:00:02]} Kd7 {[%clk 00:00:36]} {[%emt 00:00:05]} 51. Rd2+
{[%clk 00:00:17]} {[%emt 00:00:04]} 1/2-1/2